bitfinex/quotes_BTCUSD_20250928
["timestamp","ask_amount","ask_price","bid_price","bid_amount"]
[1759099582261,0.0086316,112210.0,112200.0,1.36493661]
[1759099585748,0.0086316,112210.0,112200.0,1.24246471]
[1759099585927,0.0086316,112210.0,112200.0,1.70678471]
[1759099586231,0.0086316,112210.0,112200.0,1.73693661]
[1759099587474,0.0086316,112210.0,112200.0,1.07043661]
[1759099587759,1e-08,112210.0,112200.0,1.82546817]
[1759099587958,1e-08,112220.0,112210.0,0.25838913]
[1759099588174,1e-08,112220.0,112210.0,0.26153913]
[1759099588386,1e-08,112220.0,112210.0,1.04737913]
[1759099588824,1e-08,112220.0,112210.0,1.57996858]
[1759099589034,1e-08,112220.0,112210.0,1.21493702]
[1759099589254,1e-08,112220.0,112210.0,0.36571155]
[1759099589476,1e-08,112220.0,112210.0,0.66547155]
[1759099589701,1e-08,112220.0,112210.0,0.36571155]
[1759099590134,1e-08,112220.0,112210.0,1.13183155]
[1759099590344,1e-08,112220.0,112210.0,1.13175155]
[1759099590575,1e-08,112220.0,112210.0,0.36571155]
[1759099590853,1e-08,112220.0,112210.0,1.13171155]
[1759099591275,1e-08,112220.0,112210.0,1.14271155]
[1759099591684,1e-08,112220.0,112210.0,1.13175155]
[1759099592095,1e-08,112220.0,112210.0,1.14275155]
[1759099593741,1e-08,112220.0,112210.0,1.24013702]
[1759099593964,0.0002,112230.0,112210.0,1.24013702]
[1759099594172,0.00024,112240.0,112230.0,0.47742266]
[1759099594382,0.00024,112240.0,112230.0,1.22680266]
[1759099594586,0.00024,112240.0,112230.0,1.25595266]
[1759099595061,0.00024,112240.0,112230.0,1.28275035]
[1759099595328,0.00024,112240.0,112230.0,1.32060865]
[1759099595534,0.00024,112240.0,112230.0,2.08744865]
[1759099595825,0.00024,112240.0,112230.0,1.32060865]
[1759099596040,0.00024,112240.0,112230.0,2.08752865]
[1759099596868,0.00024,112240.0,112230.0,1.32060865]
[1759099597049,0.00024,112240.0,112230.0,2.08752865]
[1759099597665,0.00024,112240.0,112230.0,2.09452865]
[1759099598076,0.00024,112240.0,112230.0,2.09752865]
[1759099598905,0.00024,112240.0,112230.0,2.08752865]
[1759099599107,0.00024,112240.0,112230.0,2.09052865]
[1759099599316,0.00024,112240.0,112230.0,2.09952865]
[1759099599933,0.01358275,112250.0,112240.0,0.47716678]
[1759099600135,0.01358275,112250.0,112240.0,0.92396678]
[1759099600384,0.01870275,112250.0,112240.0,0.94799678]
[1759099600590,0.01870275,112250.0,112240.0,0.97479294]
[1759099600790,0.01870275,112250.0,112240.0,1.27727294]
[1759099601000,0.01870275,112250.0,112240.0,1.74139294]
[1759099601339,0.01358275,112250.0,112240.0,1.74651294]
[1759099602102,0.01358275,112250.0,112240.0,1.75351294]
[1759099604281,0.01358275,112250.0,112240.0,1.75551294]
[1759099605960,0.01358275,112250.0,112240.0,1.75581294]
[1759099606786,0.01358275,112250.0,112240.0,1.82351086]
[1759099608402,0.01558275,112250.0,112240.0,1.05376086]
[1759099608581,0.01558275,112250.0,112240.0,1.82204086]
[1759099609391,0.01558275,112250.0,112240.0,1.82519086]
[1759099609747,5.01558275,112250.0,112240.0,1.82519086]
[1759099610180,5.01558275,112250.0,112240.0,1.82204086]
[1759099610399,5.01558275,112250.0,112240.0,0.98921294]
[1759099610619,5.01870275,112250.0,112240.0,1.75197294]
[1759099611251,5.01358275,112250.0,112240.0,1.75703294]
[1759099611468,5.01564275,112250.0,112240.0,1.75408294]
[1759099611683,5.01564275,112250.0,112240.0,1.75376294]
[1759099611881,5.01564275,112250.0,112240.0,1.30666294]
[1759099612330,5.01358275,112250.0,112240.0,1.30961294]
[1759099612885,5.01358275,112250.0,112240.0,0.84521294]
[1759099613107,5.01358275,112250.0,112240.0,1.30933294]
[1759099613883,5.01877275,112250.0,112240.0,0.84031294]
[1759099614096,5.01877275,112250.0,112240.0,1.30443294]
[1759099614299,5.01877275,112250.0,112240.0,0.53699294]
[1759099614501,5.01358275,112250.0,112240.0,1.30634294]
[1759099614728,5.01358275,112250.0,112240.0,1.30929294]
[1759099614891,5.01358275,112250.0,112240.0,1.04046765]
[1759099616165,5.01564275,112250.0,112240.0,1.03751765]
[1759099616368,5.01358275,112250.0,112240.0,1.04046765]
[1759099616572,5.01564275,112250.0,112240.0,1.10778393]
[1759099616993,5.01358275,112250.0,112240.0,1.10778393]
[1759099617431,5.01358275,112250.0,112240.0,1.10966393]
[1759099617629,5.01564275,112250.0,112240.0,0.64259393]
[1759099617854,5.01564275,112250.0,112240.0,1.10663393]
[1759099618062,5.01564275,112250.0,112240.0,1.01383393]
[1759099618265,5.01564275,112250.0,112240.0,1.10663393]
[1759099619181,5.01877275,112250.0,112240.0,1.01172393]
[1759099619392,5.01877275,112250.0,112240.0,0.33548393]
[1759099619593,5.01877275,112250.0,112240.0,1.10424393]
[1759099620050,5.01564275,112250.0,112240.0,0.26816765]
[1759099620251,5.01877275,112250.0,112240.0,0.26816765]
[1759099620502,5.01877275,112250.0,112240.0,1.03684765]
[1759099622274,5.01877275,112250.0,112240.0,0.26816765]
[1759099622466,5.01877275,112250.0,112240.0,1.03676765]
[1759099625882,5.01877275,112250.0,112240.0,1.03616765]
[1759099626473,5.01877275,112250.0,112240.0,0.26816765]
[1759099626679,5.01877275,112250.0,112240.0,1.03600765]
[1759099628495,5.01564275,112250.0,112240.0,1.03811765]
[1759099628701,5.01564275,112250.0,112240.0,1.03600765]
[1759099628916,5.01877275,112250.0,112240.0,1.03600765]
[1759099629143,5.01877275,112250.0,112240.0,0.23801575]
[1759099629350,5.01877275,112250.0,112240.0,0.63425575]
[1759099629972,5.01877275,112250.0,112240.0,0.63225575]
[1759099630179,5.01877275,112250.0,112240.0,0.23601575]
[1759099630414,5.02277275,112250.0,112240.0,0.15062616]
[1759099630622,5.02277275,112250.0,112240.0,0.62513575]
[1759099630871,5.02277275,112250.0,112240.0,0.60133959]
[1759099631332,5.01877275,112250.0,112240.0,0.59833959]
[1759099631565,5.01877275,112250.0,112240.0,0.59933959]
[1759099631776,5.02477275,112250.0,112240.0,0.59933959]
[1759099632411,5.03874917,112250.0,112240.0,0.59933959]
[1759099632845,5.02477275,112250.0,112240.0,0.59933959]
[1759099633064,5.01877275,112250.0,112240.0,0.59933959]
[1759099633496,5.02077275,112250.0,112240.0,0.42115]
[1759099633706,5.02077275,112250.0,112240.0,0.59833959]
[1759099633925,5.02077275,112250.0,112240.0,0.60133959]
[1759099634136,5.02077275,112250.0,112240.0,0.50813959]
[1759099634353,5.02077275,112250.0,112240.0,0.60097959]
[1759099635201,5.02077275,112250.0,112240.0,0.42279]
[1759099635736,5.03474952,112250.0,112240.0,0.42279]
[1759099635926,5.03474952,112250.0,112240.0,0.02703]
[1759099636128,5.03474952,112250.0,112240.0,0.42279]
[1759099636536,5.03474952,112250.0,112240.0,0.02703]
[1759099636749,5.03474952,112250.0,112240.0,0.42259]
[1759099636952,5.02077275,112250.0,112240.0,0.02703]
[1759099637172,5.02077275,112250.0,112240.0,0.60069959]
[1759099637391,5.01764275,112250.0,112240.0,0.60284959]
[1759099637589,5.01558275,112250.0,112240.0,0.60600959]
[1759099638054,5.01768275,112250.0,112240.0,0.62965255]
[1759099638265,5.02061275,112250.0,112240.0,0.62750255]
[1759099641670,5.02061275,112250.0,112240.0,0.89632784]
[1759099642803,5.01768275,112250.0,112240.0,0.92852974]
[1759099644328,5.01558275,112250.0,112240.0,0.93162974]
[1759099646663,5.01755275,112250.0,112240.0,0.93162974]
[1759099647289,5.02073275,112250.0,112240.0,1.29907974]
[1759099647976,5.01755275,112250.0,112240.0,1.30112974]
[1759099648457,5.01558275,112250.0,112240.0,1.30422974]
[1759099649506,5.01558275,112250.0,112240.0,0.53614974]
[1759099649720,5.01755275,112250.0,112240.0,0.92976974]
[1759099650145,5.02073275,112250.0,112240.0,0.53099974]
[1759099650364,5.02073275,112250.0,112240.0,0.92707974]
[1759099653818,5.01755275,112250.0,112240.0,0.92912974]
[1759099654018,5.01755275,112250.0,112240.0,0.93222974]
[1759099654504,5.01558275,112250.0,112240.0,0.93222974]
[1759099654916,5.01755275,112250.0,112240.0,0.92912974]
[1759099656293,5.02073275,112250.0,112240.0,1.20443974]
[1759099656497,5.02073275,112250.0,112240.0,1.29727974]
[1759099657581,5.02073275,112250.0,112240.0,0.53099974]
[1759099657776,5.02073275,112250.0,112240.0,0.92579974]
[1759099658536,5.02073275,112250.0,112240.0,0.53099974]
[1759099658746,5.02073275,112250.0,112240.0,0.92555974]
[1759099660203,5.02073275,112250.0,112240.0,0.83215974]
[1759099660417,5.02073275,112250.0,112240.0,0.41549825]
[1759099660630,5.02073275,112250.0,112240.0,0.02703]
[1759099661268,5.02073275,112250.0,112240.0,0.42207]
[1759099662706,5.02073275,112250.0,112240.0,0.02703]
[1759099663143,5.02073275,112250.0,112240.0,0.42175]
[1759099663807,5.02073275,112250.0,112240.0,0.59993959]
[1759099664676,5.01558275,112250.0,112240.0,0.60508959]
[1759099664854,5.01755275,112250.0,112240.0,0.60198959]
[1759099665418,5.02073275,112250.0,112240.0,0.59993959]
[1759099665628,5.01755275,112250.0,112240.0,0.60198959]
[1759099665860,5.02073275,112250.0,112240.0,0.02703]
[1759099666056,5.02073275,112250.0,112240.0,0.60037959]
[1759099666731,5.02073275,112250.0,112240.0,0.20521959]
[1759099666909,5.02073275,112250.0,112240.0,0.60037959]
[1759099667771,5.02073275,112250.0,112240.0,0.60005959]
[1759099668020,5.02073275,112250.0,112240.0,0.29805959]
[1759099668228,5.02073275,112250.0,112240.0,0.60001959]
[1759099669623,5.01755275,112250.0,112240.0,0.60001959]
[1759099669767,5.01755275,112250.0,112240.0,0.60516959]
[1759099669952,5.01755275,112250.0,112240.0,0.60206959]
[1759099670509,5.02073275,112250.0,112240.0,0.60001959]
[1759099671263,5.01755275,112250.0,112240.0,0.60205959]
[1759099671679,5.01755275,112250.0,112240.0,0.60001959]
[1759099671918,5.02057275,112250.0,112240.0,0.60001959]
[1759099674328,5.02057275,112250.0,112240.0,0.20521959]
[1759099674549,5.01755275,112250.0,112240.0,0.60149959]
[1759099674962,5.02057275,112250.0,112240.0,0.60149959]
[1759099675971,5.02057275,112250.0,112240.0,0.02703]
[1759099676186,5.02057275,112250.0,112240.0,0.32771]
[1759099676490,5.02057275,112250.0,112240.0,0.59873959]
[1759099676695,5.02057275,112250.0,112240.0,0.20521959]
[1759099677059,5.02057275,112250.0,112240.0,0.59873959]
[1759099677892,5.02057275,112250.0,112240.0,0.20521959]
[1759099678097,5.02057275,112250.0,112240.0,0.59857959]
[1759099679538,5.02057275,112250.0,112240.0,0.02703]
[1759099679958,5.02057275,112250.0,112240.0,0.42003]
[1759099680164,5.02057275,112250.0,112240.0,0.41995]
[1759099680789,5.01755275,112250.0,112240.0,0.60017959]
[1759099681002,5.01558275,112250.0,112240.0,0.60321959]
[1759099681429,5.01757275,112250.0,112240.0,0.60321959]
[1759099681609,5.01757275,112250.0,112240.0,0.60017959]
[1759099682735,5.01757275,112250.0,112240.0,0.59813959]
[1759099682963,5.02059275,112250.0,112240.0,0.59813959]
[1759099684038,5.01757275,112250.0,112240.0,0.60017959]
[1759099684248,5.01558275,112250.0,112240.0,0.60321959]
[1759099684866,5.01757275,112250.0,112240.0,0.60321959]
[1759099685073,5.01757275,112250.0,112240.0,0.50669959]
[1759099685291,5.01757275,112250.0,112240.0,0.59953959]
[1759099685504,5.02059275,112250.0,112240.0,0.50461959]
[1759099685709,5.02059275,112250.0,112240.0,0.59745959]
[1759099686171,5.02059275,112250.0,112240.0,0.50453959]
[1759099686381,5.02059275,112250.0,112240.0,0.59737959]
[1759099686582,5.02059275,112250.0,112240.0,0.20521959]
[1759099686797,5.02059275,112250.0,112240.0,0.59733959]
[1759099687218,5.02059275,112250.0,112240.0,0.02703]
[1759099687531,5.02059275,112250.0,112240.0,0.20521959]
[1759099687778,5.02059275,112250.0,112240.0,0.41895]
[1759099688132,5.02059275,112250.0,112240.0,0.02703]
[1759099688725,5.03456964,112250.0,112240.0,0.32591]
[1759099689798,5.03456964,112250.0,112240.0,0.32579]
[1759099690000,5.02059275,112250.0,112240.0,0.32579]
[1759099690423,5.02059275,112250.0,112240.0,0.02703]
[1759099690640,5.53876646,112250.0,112240.0,0.02703]
[1759099690866,13.53876646,112250.0,112240.0,0.26831]
[1759099691254,13.83756646,112250.0,112240.0,0.02703]
[1759099692328,13.83756646,112250.0,112240.0,0.02403]
[1759099692502,11.49415959,112240.0,112230.0,0.2948183]
[1759099692711,11.31597,112240.0,112230.0,0.2948183]
[1759099693021,11.3209,112240.0,112230.0,0.2948183]
[1759099694302,11.3279,112240.0,112230.0,0.2948183]
[1759099694661,11.3279,112240.0,112230.0,0.3189483]
[1759099694833,11.50608959,112240.0,112230.0,0.3189483]
[1759099695339,11.50608959,112240.0,112230.0,0.0242683]
[1759099695552,11.50608959,112240.0,112230.0,0.3233883]
[1759099695957,11.50608959,112240.0,112230.0,0.0242683]
[1759099696379,19.50608959,112240.0,112230.0,0.0242683]
[1759099698124,19.3279,112240.0,112230.0,0.0242683]
[1759099698324,19.50608959,112240.0,112230.0,0.0242683]
[1759099700007,19.80468959,112240.0,112230.0,0.0242683]
[1759099700546,13.82871959,112240.0,112230.0,0.0242683]
[1759099701836,14.37195263,112240.0,112230.0,0.0242683]
[1759099702040,14.46479263,112240.0,112230.0,0.0242683]
[1759099702256,14.54160917,112240.0,112230.0,0.0242683]
[1759099702468,14.49160917,112240.0,112230.0,0.0242683]
[1759099702702,14.54160917,112240.0,112230.0,0.0242683]
[1759099702903,14.53460917,112240.0,112230.0,0.0242683]
[1759099703350,14.54460917,112240.0,112230.0,0.0242683]
[1759099703987,14.62476107,112240.0,112230.0,0.0242683]
[1759099705306,14.23332107,112240.0,112230.0,0.0242683]
[1759099705530,14.62416107,112240.0,112230.0,0.0242683]
[1759099705730,14.63814391,112240.0,112230.0,0.0242683]
[1759099706801,14.63814391,112240.0,112180.0,0.10300609]
[1759099706802,0.178269,112190.0,112180.0,0.19196609]
[1759099707024,0.178269,112190.0,112180.0,0.19409458]
[1759099707228,0.202129,112190.0,112180.0,0.19409458]
[1759099707449,0.202129,112190.0,112180.0,0.12113849]
[1759099707683,0.02386,112190.0,112180.0,0.12113849]
[1759099707889,0.542129,112190.0,112180.0,0.00525849]
[1759099708571,0.542129,112190.0,112180.0,0.01025849]
[1759099708787,0.544219,112190.0,112180.0,0.03181849]
[1759099709021,8.547299,112190.0,112180.0,0.02982849]
[1759099709221,8.547299,112190.0,112180.0,0.03982849]
[1759099709494,8.845299,112190.0,112180.0,0.03982849]
[1759099709865,8.845299,112190.0,112180.0,0.02482849]
[1759099710068,8.547299,112190.0,112180.0,0.02582849]
[1759099710288,8.845219,112190.0,112180.0,0.02582849]
[1759099710477,8.547299,112190.0,112180.0,0.02582849]
[1759099710679,8.845219,112190.0,112180.0,0.02482849]
[1759099710883,8.86120543,112190.0,112180.0,0.02482849]
[1759099711083,8.56328543,112190.0,112180.0,0.02482849]
[1759099711283,8.847219,112190.0,112180.0,0.02482849]
[1759099711896,8.55897269,112190.0,112180.0,0.02482849]
[1759099712171,8.85665269,112190.0,112180.0,0.02482849]
[1759099712306,8.92454825,112190.0,112180.0,0.02482849]
[1759099713436,8.44551925,112190.0,112180.0,0.02681849]
[1759099713638,8.44551925,112190.0,112180.0,0.02994849]
[1759099713639,8.44342925,112190.0,112180.0,0.02994849]
[1759099713867,8.74090925,112190.0,112180.0,0.02994849]
[1759099714081,8.92434825,112190.0,112180.0,0.02482849]
[1759099714644,8.93833418,112190.0,112180.0,0.02482849]
[1759099715256,8.64085418,112190.0,112180.0,0.02482849]
[1759099715477,8.93617418,112190.0,112180.0,0.02482849]
[1759099715681,8.62486825,112190.0,112180.0,0.02482849]
[1759099715893,8.62178825,112190.0,112180.0,0.02981849]
[1759099716098,8.91906825,112190.0,112180.0,0.02981849]
[1759099716307,8.62178825,112190.0,112180.0,0.02681849]
[1759099716582,8.91914825,112190.0,112180.0,0.02482849]
[1759099716807,8.92222825,112190.0,112180.0,0.02482849]
[1759099717877,8.62486825,112190.0,112180.0,0.02482849]
[1759099718082,8.92214825,112190.0,112180.0,0.02482849]
[1759099718490,8.62178825,112190.0,112180.0,0.02681849]
[1759099718674,8.93293453,112190.0,112180.0,0.02681849]
[1759099719839,8.63577453,112190.0,112180.0,0.02681849]
[1759099720046,8.91890825,112190.0,112180.0,0.02681849]
[1759099720499,8.91890825,112190.0,112180.0,0.02482849]
[1759099720696,8.92198825,112190.0,112180.0,0.02482849]
[1759099721113,8.91890825,112190.0,112180.0,0.02681849]
[1759099721319,8.62178825,112190.0,112180.0,0.02681849]
[1759099721506,8.91870825,112190.0,112180.0,0.02681849]
[1759099723178,5.31318151,112180.0,112170.0,0.00313]
[1759099723382,13.4914664,112180.0,112160.0,0.00313]
[1759099723606,5.7905164,112180.0,112160.0,0.00321242]
[1759099723825,5.8143764,112180.0,112170.0,0.00199]
[1759099724250,5.63609151,112180.0,112170.0,0.00199]
[1759099724460,5.5204964,112180.0,112160.0,0.00321242]
[1759099724764,5.8172964,112180.0,112160.0,8.242e-05]
[1759099725398,5.8172964,112180.0,112170.0,0.003]
[1759099725812,5.8172964,112180.0,112160.0,0.02477242]
[1759099726067,5.8172964,112180.0,112160.0,0.02790242]
[1759099726258,5.8172964,112180.0,112160.0,0.03090242]
[1759099726382,5.8172964,112180.0,112160.0,0.02777242]
[1759099727057,5.8172964,112180.0,112160.0,0.03090242]
[1759099727408,5.83128334,112180.0,112160.0,0.03090242]
[1759099728572,5.8172964,112180.0,112160.0,0.03090242]
[1759099730273,5.8172964,112180.0,112160.0,0.02777242]
[1759099731048,0.00312,112170.0,112160.0,0.02777242]
[1759099731260,0.00512,112170.0,112160.0,0.00308242]
[1759099731462,0.03006,112170.0,112160.0,0.00518242]
[1759099731866,0.02694,112170.0,112160.0,0.00218242]
[1759099732074,0.02494,112170.0,112160.0,0.18350911]
[1759099732283,0.02494,112170.0,112160.0,0.18950911]
[1759099732479,0.02494,112170.0,112160.0,0.19150911]
[1759099732888,0.02494,112170.0,112160.0,0.22166101]
[1759099733342,0.02494,112170.0,112160.0,0.51786101]
[1759099733981,0.02494,112170.0,112160.0,0.54467927]
[1759099735690,0.02494,112170.0,112160.0,0.24847927]
[1759099735869,0.02494,112170.0,112160.0,0.63759927]
[1759099736066,0.02494,112170.0,112160.0,0.24847927]
[1759099736267,0.02494,112170.0,112160.0,0.58058911]
[1759099737095,0.02494,112170.0,112160.0,0.61074101]
[1759099737892,0.02494,112170.0,112160.0,0.63756035]
[1759099738094,0.02494,112170.0,112160.0,0.24848035]
[1759099738294,0.02494,112170.0,112160.0,0.63772035]
[1759099739604,0.02494,112170.0,112160.0,0.90712035]
[1759099740349,0.02494,112170.0,112160.0,0.90680035]
[1759099740676,0.02494,112170.0,112160.0,0.51788035]
[1759099740885,0.02494,112170.0,112160.0,0.90680035]
[1759099743420,0.02494,112170.0,112160.0,0.90480035]
[1759099743628,0.02494,112170.0,112160.0,0.90780035]
[1759099744366,0.02494,112170.0,112160.0,0.90180035]
[1759099744547,0.02494,112170.0,112160.0,0.90780035]
[1759099745191,0.02494,112170.0,112160.0,0.9172883]
[1759099745410,0.02494,112170.0,112160.0,1.18644035]
[1759099745619,0.02494,112170.0,112160.0,1.27932035]
[1759099746991,0.02494,112170.0,112160.0,1.28889082]
[1759099747412,0.02494,112170.0,112160.0,0.81448035]
[1759099747613,0.02494,112170.0,112160.0,1.27896035]
[1759099748766,0.02494,112170.0,112160.0,1.28868646]
[1759099750217,0.02494,112170.0,112160.0,1.27896035]
[1759099750392,0.02494,112170.0,112160.0,1.27880035]
[1759099750595,0.02494,112170.0,112160.0,0.81420035]
[1759099750807,0.02494,112170.0,112160.0,1.27868035]
[1759099751188,0.02494,112170.0,112160.0,0.51888035]
[1759099751389,0.02494,112170.0,112160.0,1.27864035]
[1759099754909,0.02494,112170.0,112160.0,1.27264035]
[1759099755319,0.02494,112170.0,112160.0,1.28464035]
[1759099755956,0.02494,112170.0,112160.0,1.28164035]
[1759099756158,0.02494,112170.0,112160.0,1.28864035]
[1759099757371,0.02494,112170.0,112160.0,1.73574035]
[1759099759578,0.02494,112170.0,112160.0,2.07574035]
[1759099760974,0.02494,112170.0,112160.0,2.07502035]
[1759099761229,0.02494,112170.0,112160.0,1.31598035]
[1759099761654,0.02494,112170.0,112160.0,2.07490035]
[1759099763464,0.02494,112170.0,112160.0,1.31598035]
[1759099763664,0.02494,112170.0,112160.0,2.07494035]
[1759099764281,0.02494,112170.0,112160.0,1.78042035]
[1759099764489,0.02494,112170.0,112160.0,2.07478035]
[1759099765064,0.02494,112170.0,112160.0,1.31598035]
[1759099765297,0.02494,112170.0,112160.0,2.07466035]
[1759099768038,0.02693,112170.0,112160.0,1.31297035]
[1759099768243,0.03006,112170.0,112160.0,1.72919035]
[1759099768563,0.03006,112170.0,112160.0,0.97087035]
[1759099768770,0.03006,112170.0,112160.0,1.26495035]
[1759099768995,0.02494,112170.0,112160.0,1.73478035]
[1759099769196,0.02494,112170.0,112160.0,1.28768035]
[1759099769861,0.02494,112170.0,112160.0,1.29268035]
[1759099770262,0.02494,112170.0,112160.0,1.28068035]
[1759099770791,0.02494,112170.0,112160.0,1.28768035]
[1759099773660,0.02494,112170.0,112160.0,1.62768035]
[1759099776017,0.02494,112170.0,112160.0,0.86916035]
[1759099776220,0.02494,112170.0,112160.0,1.62744035]
[1759099776823,0.02494,112170.0,112160.0,1.62740035]
[1759099778203,0.02494,112170.0,112160.0,2.07450035]
[1759099778661,0.02494,112170.0,112160.0,2.07426035]
[1759099779007,0.02494,112170.0,112160.0,1.31626035]
[1759099779207,0.02494,112170.0,112160.0,1.60978035]
[1759099779456,0.02494,112170.0,112160.0,2.07422035]
[1759099783027,0.02494,112170.0,112160.0,2.28558399]
[1759099787011,0.02494,112170.0,112160.0,2.28530399]
[1759099787229,0.02494,112170.0,112160.0,1.52762399]
[1759099787440,0.02494,112170.0,112160.0,2.19238399]
[1759099787587,0.02494,112170.0,112160.0,1.52762399]
[1759099787789,0.02494,112170.0,112160.0,2.28526399]
[1759099789620,0.02693,112170.0,112160.0,2.28201399]
[1759099789860,0.03006,112170.0,112160.0,2.28201399]
[1759099790040,0.03006,112170.0,112160.0,1.83491399]
[1759099790242,0.03006,112170.0,112160.0,1.07727399]
[1759099790541,0.03006,112170.0,112160.0,1.83491399]
[1759099791106,0.03006,112170.0,112160.0,1.07727399]
[1759099791306,0.03006,112170.0,112160.0,1.83277399]
[1759099791745,0.03006,112170.0,112160.0,1.36833399]
[1759099791945,0.03006,112170.0,112160.0,1.83277399]
[1759099792808,0.03006,112170.0,112160.0,1.07513399]
[1759099793038,0.03006,112170.0,112160.0,1.83277399]
[1759099794502,0.03006,112170.0,112160.0,1.07513399]
[1759099794701,0.03006,112170.0,112160.0,1.83277399]
[1759099795217,0.03006,112170.0,112160.0,1.36833399]
[1759099795441,0.03006,112170.0,112160.0,1.83277399]
[1759099797311,0.03006,112170.0,112160.0,1.83475399]
[1759099797716,0.02693,112170.0,112160.0,1.83475399]
[1759099797911,0.02693,112170.0,112160.0,1.83800399]
[1759099797912,0.02494,112170.0,112160.0,1.83800399]
[1759099798487,0.02698,112170.0,112160.0,1.83800399]
[1759099798711,0.03019,112170.0,112160.0,1.83475399]
[1759099798873,0.02698,112170.0,112160.0,1.83475399]
[1759099799888,0.02494,112170.0,112160.0,1.83475399]
[1759099800071,0.02698,112170.0,112160.0,1.83475399]
[1759099800320,0.03019,112170.0,112160.0,1.83475399]
[1759099800522,0.02698,112170.0,112160.0,1.83475399]
[1759099800694,0.03019,112170.0,112160.0,1.83475399]
[1759099800919,0.02494,112170.0,112160.0,1.83800399]
[1759099801161,0.02698,112170.0,112160.0,1.83800399]
[1759099801908,0.02698,112170.0,112160.0,1.83475399]
[1759099802843,0.03019,112170.0,112160.0,1.83475399]
[1759099803482,0.02698,112170.0,112160.0,1.83475399]
[1759099803734,0.02494,112170.0,112160.0,1.83800399]
[1759099804650,0.02698,112170.0,112160.0,1.83800399]
[1759099804865,0.02698,112170.0,112160.0,1.83475399]
[1759099806418,0.02698,112170.0,112160.0,1.07711399]
[1759099806547,0.02698,112170.0,112160.0,1.83471399]
[1759099807394,0.02698,112170.0,112160.0,1.83796399]
[1759099807637,0.02494,112170.0,112160.0,1.83796399]
[1759099811311,0.02494,112170.0,112160.0,1.49796399]
[1759099811817,0.00321,112190.0,112160.0,1.84687982]
[1759099812070,0.0031,112200.0,112180.0,0.18719913]
[1759099812275,0.0031,112200.0,112190.0,0.56429474]
[1759099812735,0.00505,112200.0,112190.0,0.58847474]
[1759099813196,0.00195,112200.0,112190.0,0.85997474]
[1759099813411,0.0031,112210.0,112200.0,0.17825311]
[1759099813833,0.00505,112210.0,112200.0,0.20243311]
[1759099814044,0.02843,112210.0,112200.0,0.20243311]
[1759099814469,0.02843,112210.0,112200.0,0.58847311]
[1759099814648,0.02856846,112210.0,112200.0,0.58847311]
[1759099815144,0.02856846,112210.0,112200.0,0.59047311]
[1759099815375,0.02856846,112210.0,112200.0,0.20443311]
[1759099815586,0.02856846,112210.0,112200.0,0.59047311]
[1759099815937,0.03791759,112210.0,112200.0,0.59047311]
[1759099816392,0.03991759,112210.0,112200.0,0.59047311]
[1759099816828,0.03991759,112210.0,112200.0,0.85983311]
[1759099817001,0.03056846,112210.0,112200.0,0.85983311]
[1759099817445,0.03056846,112210.0,112200.0,0.47383311]
[1759099817719,0.03056846,112210.0,112200.0,0.85983311]
[1759099817923,0.03994397,112210.0,112200.0,0.85983311]
[1759099818149,0.03056846,112210.0,112200.0,0.85983311]
[1759099818442,0.03056846,112210.0,112200.0,0.47383311]
[1759099818578,0.03056846,112210.0,112200.0,0.85983311]
[1759099820639,0.03056846,112210.0,112200.0,0.47383311]
[1759099820862,0.03056846,112210.0,112200.0,0.85983311]
[1759099821570,0.03056846,112210.0,112200.0,0.76695311]
[1759099821776,0.03056846,112210.0,112200.0,0.85983311]
[1759099822866,0.03056846,112210.0,112200.0,0.47383311]
[1759099823462,0.03056846,112210.0,112200.0,0.85979311]
[1759099826152,0.03056846,112210.0,112200.0,0.47383311]
[1759099826408,0.03056846,112210.0,112200.0,0.85979311]
[1759099829655,0.03056846,112210.0,112200.0,0.29558]
[1759099830352,0.20880569,112210.0,112200.0,0.29558]
[1759099830581,0.20880569,112210.0,112200.0,0.58862]
[1759099830787,8.20880569,112210.0,112200.0,0.58862]
[1759099832625,8.27476034,112210.0,112200.0,0.58862]
[1759099833878,8.20880569,112210.0,112200.0,0.58862]
[1759099834620,8.20880569,112210.0,112200.0,0.31922]
[1759099835343,8.20880569,112210.0,112200.0,0.02618]
[1759099835734,8.20880569,112210.0,112200.0,0.31922]
[1759099837265,8.28933907,112210.0,112200.0,0.31922]
[1759099837467,8.2753564,112210.0,112200.0,0.31922]
[1759099837911,8.09711917,112210.0,112200.0,0.31922]
[1759099838903,8.2753564,112210.0,112200.0,0.31922]
[1759099840309,8.28933907,112210.0,112200.0,0.31922]
[1759099841438,8.22278836,112210.0,112200.0,0.31922]
[1759099841948,8.22278836,112210.0,112200.0,0.02618]
[1759099842154,8.29070531,112210.0,112200.0,0.31918]
[1759099843025,8.29070531,112210.0,112200.0,0.02618]
[1759099843235,8.65542597,112210.0,112200.0,0.31918]
[1759099843633,8.29070531,112210.0,112200.0,0.31918]
[1759099843958,8.29070531,112210.0,112200.0,0.02618]
[1759099844097,8.65542597,112210.0,112200.0,0.31918]
[1759099844521,8.6414433,112210.0,112200.0,0.31918]
[1759099846989,8.30354007,112210.0,112200.0,0.31918]
[1759099847203,0.12220284,112210.0,112200.0,0.3212]
[1759099847631,0.12220284,112210.0,112200.0,0.32417]
[1759099848058,0.12220284,112210.0,112200.0,0.3212]
[1759099848266,0.12527284,112210.0,112200.0,0.3212]
[1759099848829,0.05233589,112210.0,112200.0,0.50242311]
[1759099849043,0.02551846,112210.0,112200.0,0.32417]
[1759099849251,0.03072846,112210.0,112200.0,0.31918]
[1759099849542,0.02551846,112210.0,112200.0,0.3212]
[1759099849753,0.02551846,112210.0,112200.0,0.32417]
[1759099852339,0.03950057,112210.0,112200.0,0.32417]
[1759099852636,0.0683463,112210.0,112200.0,0.32417]
[1759099852892,0.0683463,112210.0,112200.0,0.3212]
[1759099853298,0.05436419,112210.0,112200.0,0.3212]
[1759099853810,0.05436419,112210.0,112200.0,0.41404]
[1759099854691,0.05436419,112210.0,112200.0,0.41714]
[1759099855300,0.05233419,112210.0,112200.0,0.59539311]
[1759099856557,0.02551846,112210.0,112200.0,0.59539311]
[1759099857600,0.03949985,112210.0,112200.0,0.59539311]
[1759099858029,0.02551846,112210.0,112200.0,0.59539311]
[1759099859879,0.02551846,112210.0,112200.0,0.0313]
[1759099860225,0.02551846,112210.0,112200.0,0.41706]
[1759099860647,0.02551846,112210.0,112200.0,0.59531311]
[1759099860861,0.03950003,112210.0,112200.0,0.59531311]
[1759099861061,0.03950003,112210.0,112200.0,0.41706]
[1759099861224,0.03950003,112210.0,112200.0,0.59531311]
[1759099861429,0.03950003,112210.0,112200.0,0.0313]
[1759099861667,0.03950003,112210.0,112200.0,0.41706]
[1759099861896,0.03950003,112210.0,112200.0,0.59531311]